[Event "Late-Titled-Tuesday-Blitz-February-06-2024"]
[Site "Chess.com"]
[Date "2024.02.06"]
[Round "7"]
[White "giomar27"]
[Black "Mops_2004"]
[Result "0-1"]
[WhiteElo "2450"]
[BlackElo "2741"]
[TimeControl "180+1"]
[EndTime "15:14:15 PST"]
[Termination "Mops_2004 won by resignation"]

1. d4 {[%clk 0:03:00.9]} 1... g6 {[%clk 0:03:00.1]} 2. Nc3 {[%clk 0:03:00.2]}
2... Bg7 {[%clk 0:03:00.7]} 3. Bf4 {[%clk 0:03:00.9]} 3... d6 {[%clk 0:03:00.9]}
4. Qd2 {[%clk 0:03:00.7]} 4... Nc6 {[%clk 0:02:57.3]} 5. Nf3 {[%clk 0:02:59.2]}
5... Bg4 {[%clk 0:02:57.1]} 6. O-O-O {[%clk 0:02:55.9]} 6... Bxf3 {[%clk
0:02:56.7]} 7. exf3 {[%clk 0:02:52.5]} 7... Nxd4 {[%clk 0:02:56.6]} 8. Bc4
{[%clk 0:02:50.5]} 8... e6 {[%clk 0:02:55.4]} 9. Rhe1 {[%clk 0:02:50.1]} 9...
Ne7 {[%clk 0:02:45.7]} 10. Bg5 {[%clk 0:02:50.3]} 10... h6 {[%clk 0:02:41.9]}
11. Bh4 {[%clk 0:02:45.3]} 11... Ndf5 {[%clk 0:02:41.4]} 12. Bg3 {[%clk
0:02:36.8]} 12... O-O {[%clk 0:02:39.9]} 13. Bf4 {[%clk 0:02:35.3]} 13... e5
{[%clk 0:02:31]} 14. Be3 {[%clk 0:02:29.8]} 14... c6 {[%clk 0:02:26.6]} 15. g4
{[%clk 0:02:29.6]} 15... Nxe3 {[%clk 0:02:21.9]} 16. fxe3 {[%clk 0:02:29.5]}
16... d5 {[%clk 0:02:22.4]} 17. Bb3 {[%clk 0:02:28.6]} 17... b5 {[%clk
0:02:16.7]} 18. f4 {[%clk 0:02:26.3]} 18... a5 {[%clk 0:02:10.7]} 19. a4 {[%clk
0:02:25.5]} 19... b4 {[%clk 0:02:03.2]} 20. Ne2 {[%clk 0:02:25]} 20... Qd7
{[%clk 0:01:47.6]} 21. fxe5 {[%clk 0:02:24.5]} 21... Bxe5 {[%clk 0:01:43.5]} 22.
Nd4 {[%clk 0:02:24.5]} 22... Rad8 {[%clk 0:01:36.2]} 23. e4 {[%clk 0:02:17.7]}
23... g5 {[%clk 0:01:31.6]} 24. exd5 {[%clk 0:02:17]} 24... Bf4 {[%clk
0:01:31.2]} 25. Re3 {[%clk 0:02:11.4]} 25... Nxd5 {[%clk 0:01:31.2]} 26. Nf5
{[%clk 0:02:07.6]} 26... Nxe3 {[%clk 0:01:26.4]} 27. Qxd7 {[%clk 0:02:01.4]}
27... Nxd1+ {[%clk 0:01:22.1]} 0-1

[Event "Late-Titled-Tuesday-Blitz-February-06-2024"]
[Site "Chess.com"]
[Date "2024.02.06"]
[Round "7"]
[White "colegiodemadrid"]
[Black "YurasovMat-2012"]
[Result "0-1"]
[WhiteElo "2511"]
[BlackElo "2687"]
[TimeControl "180+1"]
[EndTime "15:14:21 PST"]
[Termination "YurasovMat-2012 won by checkmate"]

1. d4 {[%clk 0:03:00.9]} 1... d5 {[%clk 0:02:59]} 2. Bf4 {[%clk 0:03:00.4]} 2...
c5 {[%clk 0:02:58.6]} 3. c3 {[%clk 0:03:00.4]} 3... Nf6 {[%clk 0:02:58.6]} 4. e3
{[%clk 0:03:00.7]} 4... cxd4 {[%clk 0:02:58.2]} 5. exd4 {[%clk 0:03:00.3]} 5...
Nc6 {[%clk 0:02:58.7]} 6. Nd2 {[%clk 0:03:00.1]} 6... Bf5 {[%clk 0:02:58.5]} 7.
Qb3 {[%clk 0:02:57.9]} 7... Na5 {[%clk 0:02:58.2]} 8. Qa4+ {[%clk 0:02:56]} 8...
Bd7 {[%clk 0:02:58.2]} 9. Qc2 {[%clk 0:02:54]} 9... e6 {[%clk 0:02:58]} 10. Ngf3
{[%clk 0:02:53.8]} 10... Rc8 {[%clk 0:02:58.5]} 11. Ne5 {[%clk 0:02:52.3]} 11...
Be7 {[%clk 0:02:58.3]} 12. Bd3 {[%clk 0:02:45.6]} 12... Nc6 {[%clk 0:02:58.4]}
13. Nxd7 {[%clk 0:02:44.2]} 13... Qxd7 {[%clk 0:02:57.4]} 14. Qb3 {[%clk
0:02:38.1]} 14... O-O {[%clk 0:02:56.4]} 15. O-O {[%clk 0:02:37.8]} 15... Bd6
{[%clk 0:02:56.6]} 16. Bg5 {[%clk 0:02:36.4]} 16... Qe7 {[%clk 0:02:49.7]} 17.
h3 {[%clk 0:02:34.1]} 17... h6 {[%clk 0:02:48.8]} 18. Bh4 {[%clk 0:02:31.4]}
18... g5 {[%clk 0:02:45.4]} 19. Bg3 {[%clk 0:02:31.8]} 19... Nh5 {[%clk
0:02:45.2]} 20. Bxd6 {[%clk 0:02:26]} 20... Qxd6 {[%clk 0:02:46.1]} 21. Qd1
{[%clk 0:02:20.7]} 21... Nf4 {[%clk 0:02:46]} 22. Nf3 {[%clk 0:02:13.7]} 22...
Rfe8 {[%clk 0:02:43.4]} 23. Qd2 {[%clk 0:02:09]} 23... e5 {[%clk 0:02:36.6]} 24.
dxe5 {[%clk 0:02:08.4]} 24... Nxe5 {[%clk 0:02:35.2]} 25. Nxe5 {[%clk
0:02:08.6]} 25... Rxe5 {[%clk 0:02:32.1]} 26. Bc2 {[%clk 0:02:05.3]} 26... d4
{[%clk 0:02:25.8]} 27. Rfe1 {[%clk 0:01:59.7]} 27... Qd5 {[%clk 0:02:14.1]} 28.
f3 {[%clk 0:01:57.6]} 28... dxc3 {[%clk 0:02:12]} 29. Qxd5 {[%clk 0:01:55.9]}
29... Rxd5 {[%clk 0:02:05.2]} 30. bxc3 {[%clk 0:01:42.9]} 30... Rd2 {[%clk
0:02:04.4]} 31. Bf5 {[%clk 0:01:41.1]} 31... Rxg2+ {[%clk 0:02:03.2]} 32. Kh1
{[%clk 0:01:41.6]} 32... Rxc3 {[%clk 0:02:02.4]} 33. Rac1 {[%clk 0:01:38.8]}
33... Rxf3 {[%clk 0:02:00.1]} 34. Be4 {[%clk 0:01:32.4]} 34... Rxh3# {[%clk
0:01:59.6]} 0-1

[Event "Late-Titled-Tuesday-Blitz-February-06-2024"]
[Site "Chess.com"]
[Date "2024.02.06"]
[Round "7"]
[White "Chessdude1987"]
[Black "Road2GM3000"]
[Result "1-0"]
[WhiteElo "2311"]
[BlackElo "2461"]
[TimeControl "180+1"]
[EndTime "15:14:27 PST"]
[Termination "Chessdude1987 won by resignation"]

1. e4 {[%clk 0:03:00.9]} 1... c5 {[%clk 0:02:59.8]} 2. Nf3 {[%clk 0:03:00.6]}
2... d6 {[%clk 0:03:00.6]} 3. Bc4 {[%clk 0:03:00.3]} 3... Nf6 {[%clk 0:03:00.1]}
4. d3 {[%clk 0:03:00.4]} 4... e6 {[%clk 0:03:00.6]} 5. O-O {[%clk 0:02:56.6]}
5... Be7 {[%clk 0:03:01.3]} 6. Bb3 {[%clk 0:02:56.3]} 6... O-O {[%clk
0:03:01.4]} 7. Re1 {[%clk 0:02:56.1]} 7... Nc6 {[%clk 0:03:01.9]} 8. c3 {[%clk
0:02:56.2]} 8... b6 {[%clk 0:03:01.8]} 9. d4 {[%clk 0:02:55.6]} 9... cxd4 {[%clk
0:03:01.4]} 10. cxd4 {[%clk 0:02:55.6]} 10... d5 {[%clk 0:03:01.4]} 11. e5
{[%clk 0:02:55.5]} 11... Nd7 {[%clk 0:03:01.8]} 12. Nc3 {[%clk 0:02:55]} 12...
f5 {[%clk 0:02:53.6]} 13. Nxd5 {[%clk 0:02:44.4]} 13... Bb7 {[%clk 0:02:48.2]}
14. Nxe7+ {[%clk 0:02:41.9]} 14... Qxe7 {[%clk 0:02:49.1]} 15. Ng5 {[%clk
0:02:34.5]} 15... Nd8 {[%clk 0:02:40.1]} 16. d5 {[%clk 0:02:33]} 16... exd5
{[%clk 0:02:37.2]} 17. Bxd5+ {[%clk 0:02:32.7]} 17... Bxd5 {[%clk 0:02:33.8]}
18. Qxd5+ {[%clk 0:02:32.5]} 18... Nf7 {[%clk 0:02:33.7]} 19. Nxf7 {[%clk
0:02:22.8]} 19... Qxf7 {[%clk 0:02:15.6]} 20. e6 {[%clk 0:02:22.7]} 20... Qe7
{[%clk 0:01:47.9]} 21. exd7+ {[%clk 0:02:19.6]} 21... Qf7 {[%clk 0:01:45.4]} 22.
Qxf7+ {[%clk 0:02:14.3]} 22... Kxf7 {[%clk 0:01:45.5]} 23. Bg5 {[%clk
0:02:12.4]} 23... h6 {[%clk 0:01:43.8]} 24. d8=Q {[%clk 0:02:12.2]} 24... Rfxd8
{[%clk 0:01:43.8]} 25. Bxd8 {[%clk 0:02:11.8]} 25... Rxd8 {[%clk 0:01:44.1]} 26.
Rad1 {[%clk 0:02:08.1]} 26... Rc8 {[%clk 0:01:44.7]} 27. h4 {[%clk 0:02:02.7]}
27... Rc2 {[%clk 0:01:44.1]} 28. Rd7+ {[%clk 0:01:57.7]} 28... Kf6 {[%clk
0:01:43.5]} 29. Rxa7 {[%clk 0:01:55.1]} 29... Rxb2 {[%clk 0:01:43.9]} 30. a4
{[%clk 0:01:52.7]} 30... Ra2 {[%clk 0:01:40.6]} 31. Ra6 {[%clk 0:01:51.6]} 31...
Kg6 {[%clk 0:01:38.8]} 32. Rxb6+ {[%clk 0:01:51.2]} 32... Kh5 {[%clk 0:01:39.5]}
33. Rb4 {[%clk 0:01:51]} 33... g6 {[%clk 0:01:37.6]} 34. g3 {[%clk 0:01:50.2]}
34... Ra1 {[%clk 0:01:38.5]} 35. Rxa1 {[%clk 0:01:46]} 1-0

[Event "Late-Titled-Tuesday-Blitz-February-06-2024"]
[Site "Chess.com"]
[Date "2024.02.06"]
[Round "7"]
[White "thesupera12"]
[Black "IraZyne"]
[Result "1-0"]
[WhiteElo "2505"]
[BlackElo "2313"]
[TimeControl "180+1"]
[EndTime "15:14:29 PST"]
[Termination "thesupera12 won by resignation"]

1. e4 {[%clk 0:03:00.9]} 1... Nf6 {[%clk 0:02:59.1]} 2. e5 {[%clk 0:02:53.6]}
2... Nd5 {[%clk 0:02:59]} 3. Bc4 {[%clk 0:02:54]} 3... Nb6 {[%clk 0:02:58.4]} 4.
Bb3 {[%clk 0:02:54.2]} 4... c5 {[%clk 0:02:59]} 5. d3 {[%clk 0:02:53.9]} 5... d5
{[%clk 0:02:58.1]} 6. exd6 {[%clk 0:02:53.4]} 6... Qxd6 {[%clk 0:02:58.1]} 7.
Nf3 {[%clk 0:02:53.7]} 7... Nc6 {[%clk 0:02:58.1]} 8. O-O {[%clk 0:02:54.3]}
8... Bg4 {[%clk 0:02:57.8]} 9. h3 {[%clk 0:02:53.1]} 9... Bh5 {[%clk 0:02:55.9]}
10. Be3 {[%clk 0:02:52]} 10... e6 {[%clk 0:02:55.2]} 11. Nbd2 {[%clk 0:02:51.6]}
11... Nd4 {[%clk 0:02:51.8]} 12. Bxd4 {[%clk 0:02:46.6]} 12... cxd4 {[%clk
0:02:51]} 13. Re1 {[%clk 0:02:45.5]} 13... Be7 {[%clk 0:02:50.1]} 14. Ne4 {[%clk
0:02:45.8]} 14... Qd7 {[%clk 0:02:46.4]} 15. Ng3 {[%clk 0:02:45.9]} 15... Bg6
{[%clk 0:02:44.6]} 16. Ne5 {[%clk 0:02:45.8]} 16... Qc7 {[%clk 0:02:39.3]} 17.
Nxg6 {[%clk 0:02:43.8]} 17... hxg6 {[%clk 0:02:38.6]} 18. Bxe6 {[%clk
0:02:40.8]} 18... fxe6 {[%clk 0:02:36.8]} 19. Rxe6 {[%clk 0:02:41.7]} 19...
O-O-O {[%clk 0:02:31.4]} 20. Qg4 {[%clk 0:02:40.3]} 20... Kb8 {[%clk 0:02:30.5]}
21. Rxg6 {[%clk 0:02:38.6]} 21... Bf6 {[%clk 0:02:30.1]} 22. Ne4 {[%clk
0:02:37.7]} 22... Be5 {[%clk 0:02:25.4]} 23. Ng5 {[%clk 0:02:31.2]} 23... Rde8
{[%clk 0:02:14]} 24. Nf3 {[%clk 0:02:06.1]} 24... Bf6 {[%clk 0:02:11.3]} 25.
Nxd4 {[%clk 0:02:03]} 25... Nd5 {[%clk 0:02:08.4]} 26. Nb5 {[%clk 0:01:48.5]}
26... Qc6 {[%clk 0:01:45.8]} 27. c4 {[%clk 0:01:47]} 27... Ne7 {[%clk
0:01:41.8]} 28. Qg3+ {[%clk 0:01:37.6]} 28... Kc8 {[%clk 0:01:39.9]} 29. Nxa7+
{[%clk 0:01:36.5]} 1-0

[Event "Late-Titled-Tuesday-Blitz-February-06-2024"]
[Site "Chess.com"]
[Date "2024.02.06"]
[Round "7"]
[White "rionelG"]
[Black "Canal_Showdrez"]
[Result "1-0"]
[WhiteElo "2241"]
[BlackElo "2038"]
[TimeControl "180+1"]
[EndTime "15:14:38 PST"]
[Termination "rionelG won by resignation"]

1. e4 {[%clk 0:03:00.9]} 1... c5 {[%clk 0:02:57.7]} 2. Nf3 {[%clk 0:02:56.7]}
2... Nc6 {[%clk 0:02:56.9]} 3. d4 {[%clk 0:02:42.3]} 3... cxd4 {[%clk
0:02:57.8]} 4. Nxd4 {[%clk 0:02:43.2]} 4... Nf6 {[%clk 0:02:55.4]} 5. Nc3 {[%clk
0:02:43.6]} 5... e5 {[%clk 0:02:41.5]} 6. Ndb5 {[%clk 0:02:42.6]} 6... d6 {[%clk
0:02:39.5]} 7. Nd5 {[%clk 0:02:41.5]} 7... Nxd5 {[%clk 0:02:37]} 8. exd5 {[%clk
0:02:42.4]} 8... Nb8 {[%clk 0:02:37.2]} 9. a4 {[%clk 0:02:42.9]} 9... Nd7 {[%clk
0:02:31.5]} 10. Be2 {[%clk 0:02:42.5]} 10... Be7 {[%clk 0:02:30.5]} 11. O-O
{[%clk 0:02:42.7]} 11... O-O {[%clk 0:02:29]} 12. Bd2 {[%clk 0:02:41.6]} 12...
f5 {[%clk 0:02:26]} 13. f4 {[%clk 0:02:40.9]} 13... e4 {[%clk 0:02:24.9]} 14. a5
{[%clk 0:02:36.2]} 14... Nf6 {[%clk 0:02:23.3]} 15. Be3 {[%clk 0:02:35]} 15...
a6 {[%clk 0:02:15.4]} 16. Bb6 {[%clk 0:02:33.3]} 16... Qd7 {[%clk 0:02:12.2]}
17. Nc7 {[%clk 0:02:30.3]} 17... Ng4 {[%clk 0:01:45.7]} 18. Nxa8 {[%clk
0:02:13]} 18... Ne3 {[%clk 0:01:43]} 19. Bxe3 {[%clk 0:02:12.3]} 19... Bf6
{[%clk 0:01:40.7]} 20. Nb6 {[%clk 0:02:09]} 20... Qf7 {[%clk 0:01:40.1]} 21.
Nxc8 {[%clk 0:02:08.1]} 21... Rxc8 {[%clk 0:01:39.3]} 22. c3 {[%clk 0:02:01.6]}
22... h6 {[%clk 0:01:36.4]} 23. Bd4 {[%clk 0:01:58]} 23... Be7 {[%clk
0:01:35.1]} 24. c4 {[%clk 0:01:56.2]} 24... g5 {[%clk 0:01:32.5]} 25. fxg5
{[%clk 0:01:54.3]} 25... hxg5 {[%clk 0:01:33.4]} 26. Bh5 {[%clk 0:01:54.1]}
26... Qh7 {[%clk 0:01:29.5]} 27. Ra3 {[%clk 0:01:54.7]} 27... f4 {[%clk
0:01:28.7]} 28. Rh3 {[%clk 0:01:53]} 28... Qf5 {[%clk 0:01:26.8]} 29. Bg4 {[%clk
0:01:52.7]} 29... Qg6 {[%clk 0:01:23.4]} 30. Be6+ {[%clk 0:01:48.8]} 1-0

[Event "Late-Titled-Tuesday-Blitz-February-06-2024"]
[Site "Chess.com"]
[Date "2024.02.06"]
[Round "7"]
[White "ChadBiryani"]
[Black "Englishman_18"]
[Result "0-1"]
[WhiteElo "2446"]
[BlackElo "2335"]
[TimeControl "180+1"]
[EndTime "15:14:40 PST"]
[Termination "Englishman_18 won by checkmate"]

1. b3 {[%clk 0:03:00.4]} 1... Nf6 {[%clk 0:02:56.9]} 2. Bb2 {[%clk 0:03:00.9]}
2... g6 {[%clk 0:02:57.6]} 3. g4 {[%clk 0:03:01.3]} 3... Bg7 {[%clk 0:02:47.5]}
4. e3 {[%clk 0:03:01.1]} 4... d6 {[%clk 0:02:45.1]} 5. h3 {[%clk 0:03:00.6]}
5... e5 {[%clk 0:02:45]} 6. Bg2 {[%clk 0:03:00.7]} 6... O-O {[%clk 0:02:43.6]}
7. Ne2 {[%clk 0:03:01.2]} 7... Nbd7 {[%clk 0:02:39.9]} 8. Ng3 {[%clk 0:03:01.3]}
8... c6 {[%clk 0:02:37.5]} 9. d3 {[%clk 0:03:00.1]} 9... Qc7 {[%clk 0:02:31.4]}
10. Nd2 {[%clk 0:03:00.5]} 10... Nd5 {[%clk 0:02:26.4]} 11. Qe2 {[%clk
0:02:56.4]} 11... Ne7 {[%clk 0:02:24]} 12. O-O-O {[%clk 0:02:54.7]} 12... a5
{[%clk 0:02:20.8]} 13. h4 {[%clk 0:02:54]} 13... a4 {[%clk 0:02:19.7]} 14. h5
{[%clk 0:02:51.4]} 14... axb3 {[%clk 0:02:00.6]} 15. axb3 {[%clk 0:02:50.9]}
15... Ra2 {[%clk 0:01:49.7]} 16. Kb1 {[%clk 0:02:48.1]} 16... Qa5 {[%clk
0:01:47.4]} 17. Nc4 {[%clk 0:02:48.2]} 17... Qa7 {[%clk 0:01:37.5]} 18. Nxd6
{[%clk 0:02:46.4]} 18... b5 {[%clk 0:01:32.8]} 19. hxg6 {[%clk 0:02:36]} 19...
hxg6 {[%clk 0:01:27.2]} 20. Be4 {[%clk 0:02:30.6]} 20... Nc5 {[%clk 0:01:14.4]}
21. f3 {[%clk 0:02:26.2]} 21... b4 {[%clk 0:01:07.7]} 22. Qh2 {[%clk 0:02:13.4]}
22... Rd8 {[%clk 0:00:57.4]} 23. Bxe5 {[%clk 0:02:05.6]} 23... Ra1+ {[%clk
0:00:49.1]} 24. Bxa1 {[%clk 0:01:57.5]} 24... Qxa1# {[%clk 0:00:48.2]} 0-1

[Event "Late-Titled-Tuesday-Blitz-February-06-2024"]
[Site "Chess.com"]
[Date "2024.02.06"]
[Round "7"]
[White "Ze-Pequeno"]
[Black "Jamal-Jamal-Jamal"]
[Result "0-1"]
[WhiteElo "2121"]
[BlackElo "2353"]
[TimeControl "180+1"]
[EndTime "15:14:51 PST"]
[Termination "Jamal-Jamal-Jamal won by resignation"]

1. e4 {[%clk 0:02:53.5]} 1... c5 {[%clk 0:02:57.2]} 2. Nf3 {[%clk 0:02:53.4]}
2... Nc6 {[%clk 0:02:57.4]} 3. d4 {[%clk 0:02:54]} 3... cxd4 {[%clk 0:02:58.3]}
4. Nxd4 {[%clk 0:02:54.5]} 4... e5 {[%clk 0:02:58.5]} 5. Nb5 {[%clk 0:02:53.2]}
5... d6 {[%clk 0:02:58.7]} 6. N1c3 {[%clk 0:02:52.7]} 6... a6 {[%clk 0:02:58.8]}
7. Na3 {[%clk 0:02:53]} 7... Be7 {[%clk 0:02:59.4]} 8. Nd5 {[%clk 0:02:50.1]}
8... Nf6 {[%clk 0:02:58.9]} 9. Nxf6+ {[%clk 0:02:49.1]} 9... Bxf6 {[%clk
0:02:59.1]} 10. Be2 {[%clk 0:02:49.1]} 10... O-O {[%clk 0:02:58.9]} 11. O-O
{[%clk 0:02:49.1]} 11... b5 {[%clk 0:02:52.9]} 12. c3 {[%clk 0:02:49.1]} 12...
Be6 {[%clk 0:02:51.5]} 13. Nc2 {[%clk 0:02:48.8]} 13... d5 {[%clk 0:02:51.2]}
14. exd5 {[%clk 0:02:49.1]} 14... Qxd5 {[%clk 0:02:51.3]} 15. Qxd5 {[%clk
0:02:46.9]} 15... Bxd5 {[%clk 0:02:52.2]} 16. Ne3 {[%clk 0:02:47.2]} 16... Be6
{[%clk 0:02:49]} 17. Bf3 {[%clk 0:02:47.5]} 17... Rac8 {[%clk 0:02:49.1]} 18.
Bd5 {[%clk 0:02:47.4]} 18... Rfe8 {[%clk 0:02:31.1]} 19. Bxe6 {[%clk 0:02:46.4]}
19... Rxe6 {[%clk 0:02:30.2]} 20. Rd1 {[%clk 0:02:45.6]} 20... Bg5 {[%clk
0:02:15.2]} 21. Kf1 {[%clk 0:02:37.7]} 21... Na5 {[%clk 0:02:11.2]} 22. Ke2
{[%clk 0:02:30.1]} 22... Ree8 {[%clk 0:02:00.5]} 23. Rd6 {[%clk 0:02:25.7]}
23... Bxe3 {[%clk 0:01:58.7]} 24. Bxe3 {[%clk 0:02:25.3]} 24... Nc4 {[%clk
0:01:59]} 25. Rxa6 {[%clk 0:02:25.8]} 25... Nxb2 {[%clk 0:01:57.6]} 26. Rb1
{[%clk 0:02:25.7]} 26... Nc4 {[%clk 0:01:54.5]} 27. Bc1 {[%clk 0:02:17.8]} 27...
Rc5 {[%clk 0:01:37.8]} 28. Rb3 {[%clk 0:02:12.3]} 28... Rd8 {[%clk 0:01:14.6]}
29. Ra7 {[%clk 0:02:10.9]} 29... Rcd5 {[%clk 0:01:03.9]} 30. Rb7 {[%clk
0:01:56]} 30... Na5 {[%clk 0:01:03.6]} 0-1

[Event "Late-Titled-Tuesday-Blitz-February-06-2024"]
[Site "Chess.com"]
[Date "2024.02.06"]
[Round "7"]
[White "andrzej"]
[Black "koziororo"]
[Result "1-0"]
[WhiteElo "2467"]
[BlackElo "2610"]
[TimeControl "180+1"]
[EndTime "15:14:56 PST"]
[Termination "andrzej won by resignation"]

1. e4 {[%clk 0:03:00.9]} 1... e6 {[%clk 0:03:00.2]} 2. d4 {[%clk 0:03:00.7]}
2... d5 {[%clk 0:03:00.9]} 3. Nc3 {[%clk 0:03:01.3]} 3... Bb4 {[%clk 0:03:00.7]}
4. e5 {[%clk 0:03:01.8]} 4... c5 {[%clk 0:03:00.5]} 5. a3 {[%clk 0:03:02.2]}
5... Bxc3+ {[%clk 0:03:01]} 6. bxc3 {[%clk 0:03:03.1]} 6... Ne7 {[%clk
0:03:01.3]} 7. Qg4 {[%clk 0:03:02.7]} 7... Qc7 {[%clk 0:03:01.3]} 8. Bd3 {[%clk
0:03:00.5]} 8... c4 {[%clk 0:02:52.6]} 9. Be2 {[%clk 0:03:00.1]} 9... Nf5 {[%clk
0:02:53.5]} 10. h4 {[%clk 0:02:58.6]} 10... h5 {[%clk 0:02:52.9]} 11. Qf4 {[%clk
0:02:55.7]} 11... g6 {[%clk 0:02:46.5]} 12. g4 {[%clk 0:02:49.7]} 12... hxg4
{[%clk 0:02:45.8]} 13. Qxg4 {[%clk 0:02:49.7]} 13... Nc6 {[%clk 0:02:39.2]} 14.
h5 {[%clk 0:02:44.5]} 14... gxh5 {[%clk 0:02:20.8]} 15. Rxh5 {[%clk 0:02:42.9]}
15... Rf8 {[%clk 0:02:15.5]} 16. Nf3 {[%clk 0:02:29.3]} 16... Bd7 {[%clk
0:02:14.6]} 17. Bg5 {[%clk 0:02:23.5]} 17... Nce7 {[%clk 0:02:12.5]} 18. Bxe7
{[%clk 0:02:12.8]} 18... Nxe7 {[%clk 0:02:13.4]} 19. Qh4 {[%clk 0:02:12.4]}
19... Ba4 {[%clk 0:02:08.1]} 20. Kd2 {[%clk 0:01:59.9]} 20... O-O-O {[%clk
0:02:07.2]} 21. Rb1 {[%clk 0:01:52]} 21... Rg8 {[%clk 0:02:03.8]} 22. Qf6 {[%clk
0:01:46.6]} 22... Rdf8 {[%clk 0:01:58.3]} 23. Rh7 {[%clk 0:01:44.8]} 23... Be8
{[%clk 0:01:53.6]} 24. Ng5 {[%clk 0:01:35]} 24... Nf5 {[%clk 0:01:31.8]} 25.
Nxe6 {[%clk 0:01:26.1]} 25... fxe6 {[%clk 0:01:32.7]} 26. Rxc7+ {[%clk
0:01:25.2]} 26... Kxc7 {[%clk 0:01:33.4]} 27. Qxe6 {[%clk 0:01:24]} 27... Bf7
{[%clk 0:01:22.1]} 28. Qxf5 {[%clk 0:01:23.4]} 1-0

[Event "Late-Titled-Tuesday-Blitz-February-06-2024"]
[Site "Chess.com"]
[Date "2024.02.06"]
[Round "7"]
[White "romulocardoso"]
[Black "maurovargas01"]
[Result "1-0"]
[WhiteElo "2231"]
[BlackElo "1896"]
[TimeControl "180+1"]
[EndTime "15:15:00 PST"]
[Termination "romulocardoso won on time"]

1. e4 {[%clk 0:03:00.9]} 1... c5 {[%clk 0:02:58.2]} 2. Nf3 {[%clk 0:02:59.8]}
2... Nc6 {[%clk 0:02:57.8]} 3. d4 {[%clk 0:03:00.3]} 3... cxd4 {[%clk 0:02:58]}
4. Nxd4 {[%clk 0:03:00.4]} 4... g6 {[%clk 0:02:57.9]} 5. Nc3 {[%clk 0:02:57.9]}
5... Bg7 {[%clk 0:02:57.5]} 6. Be3 {[%clk 0:02:58.5]} 6... d6 {[%clk 0:02:53.6]}
7. Qd2 {[%clk 0:02:52.9]} 7... Nf6 {[%clk 0:02:53.3]} 8. f3 {[%clk 0:02:52.9]}
8... Bd7 {[%clk 0:02:50]} 9. O-O-O {[%clk 0:02:52.5]} 9... Rc8 {[%clk 0:02:49]}
10. g4 {[%clk 0:02:51.2]} 10... Ne5 {[%clk 0:02:29.4]} 11. Kb1 {[%clk 0:02:49]}
11... O-O {[%clk 0:01:24.9]} 12. h4 {[%clk 0:02:43.1]} 12... h5 {[%clk
0:01:20.4]} 13. gxh5 {[%clk 0:02:33.5]} 13... Nxh5 {[%clk 0:01:19.8]} 14. Bh6
{[%clk 0:02:34.1]} 14... Rxc3 {[%clk 0:00:56.8]} 15. Bxg7 {[%clk 0:02:25.4]}
15... Kxg7 {[%clk 0:00:52.9]} 16. Qxc3 {[%clk 0:02:22.7]} 16... Qb6 {[%clk
0:00:06.7]} 17. Qb3 {[%clk 0:02:17.4]} 1-0

[Event "Late-Titled-Tuesday-Blitz-February-06-2024"]
[Site "Chess.com"]
[Date "2024.02.06"]
[Round "7"]
[White "chenxiaoyuer"]
[Black "Redzishchess"]
[Result "1-0"]
[WhiteElo "2763"]
[BlackElo "2535"]
[TimeControl "180+1"]
[EndTime "15:15:01 PST"]
[Termination "chenxiaoyuer won by resignation"]

1. e4 {[%clk 0:03:00.9]} 1... c5 {[%clk 0:02:59.1]} 2. Nf3 {[%clk 0:03:00.6]}
2... d6 {[%clk 0:02:59.5]} 3. d4 {[%clk 0:03:01]} 3... cxd4 {[%clk 0:03:00.4]}
4. Nxd4 {[%clk 0:03:01.6]} 4... Nf6 {[%clk 0:03:00.8]} 5. Nc3 {[%clk 0:03:02.2]}
5... g6 {[%clk 0:03:01]} 6. Be2 {[%clk 0:03:00.5]} 6... Bg7 {[%clk 0:03:00.9]}
7. O-O {[%clk 0:03:01.1]} 7... O-O {[%clk 0:03:01.5]} 8. Bg5 {[%clk 0:03:00.9]}
8... Nc6 {[%clk 0:02:58.3]} 9. Nb3 {[%clk 0:03:01.4]} 9... h6 {[%clk 0:02:57.2]}
10. Bh4 {[%clk 0:02:52]} 10... Bd7 {[%clk 0:02:57.4]} 11. Kh1 {[%clk 0:02:50.5]}
11... Rc8 {[%clk 0:02:47]} 12. f4 {[%clk 0:02:49]} 12... a6 {[%clk 0:01:57.4]}
13. a4 {[%clk 0:02:46]} 13... Na5 {[%clk 0:01:25.2]} 14. e5 {[%clk 0:02:35.1]}
14... Nxb3 {[%clk 0:01:16.9]} 15. exf6 {[%clk 0:02:35.1]} 15... Bxf6 {[%clk
0:00:59.1]} 16. Bxf6 {[%clk 0:02:34]} 16... Nxa1 {[%clk 0:00:58.9]} 17. Bd4
{[%clk 0:02:34.6]} 17... Nxc2 {[%clk 0:00:49.1]} 18. Qxc2 {[%clk 0:02:35.5]}
18... Bf5 {[%clk 0:00:49.7]} 19. Qd2 {[%clk 0:02:28.9]} 19... e5 {[%clk
0:00:49]} 20. Be3 {[%clk 0:02:26.3]} 20... Qa5 {[%clk 0:00:27.5]} 21. fxe5
{[%clk 0:02:19.3]} 21... dxe5 {[%clk 0:00:27.2]} 22. Bxh6 {[%clk 0:02:19.4]}
22... Rfd8 {[%clk 0:00:26.8]} 23. Qg5 {[%clk 0:02:19.1]} 23... Qb6 {[%clk
0:00:24.4]} 24. Rxf5 {[%clk 0:02:14.8]} 24... Rxc3 {[%clk 0:00:24.3]} 25. bxc3
{[%clk 0:02:11]} 25... Qb1+ {[%clk 0:00:24.3]} 26. Rf1 {[%clk 0:02:11.3]} 1-0

[Event "Late-Titled-Tuesday-Blitz-February-06-2024"]
[Site "Chess.com"]
[Date "2024.02.06"]
[Round "7"]
[White "pfalcon1949"]
[Black "viniciusrego"]
[Result "0-1"]
[WhiteElo "1971"]
[BlackElo "2431"]
[TimeControl "180+1"]
[EndTime "15:15:02 PST"]
[Termination "viniciusrego won by resignation"]

1. e4 {[%clk 0:03:00.9]} 1... c5 {[%clk 0:03:00.2]} 2. Nf3 {[%clk 0:02:59.7]}
2... Nc6 {[%clk 0:03:00.2]} 3. d4 {[%clk 0:02:59.5]} 3... cxd4 {[%clk
0:03:01.1]} 4. Nxd4 {[%clk 0:02:59.5]} 4... g6 {[%clk 0:03:01.2]} 5. c4 {[%clk
0:02:57.7]} 5... Nf6 {[%clk 0:02:59.3]} 6. Nc3 {[%clk 0:02:54.9]} 6... Nxd4
{[%clk 0:02:58.9]} 7. Qxd4 {[%clk 0:02:54]} 7... d6 {[%clk 0:02:59.5]} 8. Be2
{[%clk 0:02:51.2]} 8... Bg7 {[%clk 0:02:59.6]} 9. Be3 {[%clk 0:02:50.2]} 9...
O-O {[%clk 0:02:57.9]} 10. Qd2 {[%clk 0:02:42.8]} 10... Be6 {[%clk 0:02:56.6]}
11. b3 {[%clk 0:02:41.1]} 11... Nxe4 {[%clk 0:02:53.8]} 12. Nxe4 {[%clk
0:02:39.2]} 12... Bxa1 {[%clk 0:02:53.4]} 13. O-O {[%clk 0:02:40]} 13... Bg7
{[%clk 0:02:53.1]} 14. h4 {[%clk 0:02:38.7]} 14... a5 {[%clk 0:02:29.4]} 15. h5
{[%clk 0:02:37.7]} 15... a4 {[%clk 0:02:29.5]} 16. hxg6 {[%clk 0:02:36]} 16...
hxg6 {[%clk 0:02:30.4]} 17. Ng5 {[%clk 0:02:33.5]} 17... Qa5 {[%clk 0:02:28.6]}
18. Qd1 {[%clk 0:02:14.8]} 18... Bf5 {[%clk 0:02:17.6]} 19. g4 {[%clk
0:02:06.1]} 19... Bd7 {[%clk 0:02:17.1]} 20. f4 {[%clk 0:02:05.8]} 20... axb3
{[%clk 0:02:12.8]} 21. axb3 {[%clk 0:02:04.4]} 21... Qc3 {[%clk 0:02:09.7]} 22.
Bf2 {[%clk 0:01:46.8]} 22... Ra1 {[%clk 0:02:04.2]} 23. Qd5 {[%clk 0:01:41.5]}
23... Rxf1+ {[%clk 0:02:00]} 24. Bxf1 {[%clk 0:01:40.6]} 24... Qxb3 {[%clk
0:01:55.2]} 25. Bd3 {[%clk 0:01:24.7]} 25... Bc6 {[%clk 0:01:51.3]} 26. Qa5
{[%clk 0:00:44.8]} 26... Qxd3 {[%clk 0:01:48.8]} 0-1